Cogmind - Beta 10.1 --- EXPLORER MODE // 2020.10.27 @ 00:37:29 Player: Joking_Phantom Result: Escaped! Performance ------------- Evolutions (9) 4500 Regions Visited (12) 2400 Robots Destroyed (15) 75 Value Destroyed (347) 347 Prototype IDs (42) 840 Alien Tech Used (0) 0 Bonus (9055) 9055 TOTAL SCORE: 17217 Bonus ------- High Alert Combat Kills 11 Aligned with FarCom 300 Win 3000 Win Speed 5744 Cogmind --------- Core Integrity 1554/1600 Matter 53/300 Energy 411/690 System Corruption 1% Temperature Cool (216) Movement Flying (17) Location To Epsilon Eridani Parts ------- > --- POWER (3) -------- Quantum Reactor Quantum Reactor Light Quantum Reactor > --- PROPULSION (11) -- Diametric Drive Diametric Drive Flying Fortress v7 Q-thruster Q-thruster Q-thruster Q-thruster Electron Diverter > --- UTILITY (10) ----- Fusion Compressor Advanced Cooling System Advanced Coolant Injector Medium Storage Unit Large Storage Unit High-capacity Storage Unit Hacking Suite Advanced Hacking Suite Advanced Hacking Suite Advanced System Shield > --- WEAPON (2) ------- Greatsword > --- INVENTORY (22) --- Light Quantum Reactor Impulse Thruster Diametric Drive Diametric Drive Diametric Drive Advanced Coolant Injector Energy Well (500) Enhanced Optical Array Advanced Terrain Scanner Reaction Control System Improved Propulsion Shielding Experimental Thermal Shield Compact HERF Cannon Compact HERF Cannon Enhanced Nova Cannon Enhanced Nova Cannon Hypervelocity Gauss Rifle Fusion Bomb Launcher Peak State ------------ > --- POWER ------------ Quantum Reactor Quantum Reactor Light Quantum Reactor > --- PROPULSION ------- Diametric Drive Diametric Drive Flying Fortress v7 Q-thruster Q-thruster Q-thruster Q-thruster Electron Diverter > --- UTILITY ---------- Fusion Compressor Advanced Cooling System Advanced Coolant Injector Medium Storage Unit Large Storage Unit High-capacity Storage Unit Hacking Suite Advanced Hacking Suite Advanced Hacking Suite Advanced System Shield > --- WEAPON ----------- Greatsword > --- INVENTORY -------- Antimatter Reactor Impulse Thruster Diametric Drive Diametric Drive Diametric Drive Advanced Coolant Injector Energy Well Enhanced Optical Array Advanced Terrain Scanner Reaction Control System Improved Propulsion Shielding Experimental Thermal Shield Compact HERF Cannon Compact HERF Cannon Enhanced Nova Cannon Enhanced Nova Cannon Hypervelocity Gauss Rifle Fusion Bomb Launcher [Rating: 178] Favorites ----------- Power Light Fission Core Engine Light Ion Engine Power Core Light Fission Core Reactor Quantum Reactor Propulsion Flying Fortress v7 Treads Light Treads Leg Aluminum Leg Hover Unit Combat Gravmag System Flight Unit Flying Fortress v7 Utility Medium Storage Unit Device Improved System Backup Module Storage Medium Storage Unit Processor Improved Terrain Scan Processor Hackware Hacking Suite Protection Improved Propulsion Shielding Weapon Assault Rifle Energy Gun Precision Phase Gun Ballistic Gun Assault Rifle Ballistic Cannon Advanced Assault Cannon Launcher Improved Proton Missile Launcher Slashing Weapon Greatsword Build | -11 -10 -10 -10 -9 -8 -7 -6 -5 -4 -3 -2 -1 ------- Run | Scr Mat Min Exi Min Mat Fac Fac Fac Fac Res Res Acc Slots Evolved 19 | . 1 . . . 4 2 2 2 2 2 2 2 Power 2 | . . . . . . . . 1 . . . 1 Propulsion 9 | . . . . . 2 1 1 1 . 1 2 1 Utility 8 | . 1 . . . 2 1 1 . 2 1 . . Weapon . | . . . . . . . . . . . . . Parts Attached 88 | 1 3 . 3 1 7 2 12 19 5 14 12 9 Power 11 | . . . . . 1 . 1 1 2 3 1 2 Engine 1 | . . . . . 1 . . . . . . . Core 5 | . . . . . . . 1 1 2 1 . . Reactor 5 | . . . . . . . . . . 2 1 2 Propulsion 27 | . 2 . . . 1 . 3 8 . 4 5 4 Treads 2 | . 2 . . . . . . . . . . . Leg . | . . . . . . . . . . . . . Wheel . | . . . . . . . . . . . . . Hover 1 | . . . . . . . . 1 . . . . Flight 24 | . . . . . 1 . 3 7 . 4 5 4 Utility 32 | 1 1 . 3 . 2 2 2 7 3 4 4 3 Device 14 | . . . 1 . . . 1 4 1 2 3 2 Storage 9 | 1 1 . 2 . 2 . 1 1 1 . . . Processor 1 | . . . . . . . . . . . . 1 Hackware 5 | . . . . . . 1 . 1 1 1 1 . Protection 3 | . . . . . . 1 . 1 . 1 . . Artifact . | . . . . . . . . . . . . . Weapon 18 | . . . . 1 3 . 6 3 . 3 2 . Energy Gun 1 | . . . . . . . . . . . 1 . Energy Cannon . | . . . . . . . . . . . . . Ballistic Gun 1 | . . . . . 1 . . . . . . . Ballistic Cannon 6 | . . . . . 2 . 4 . . . . . Launcher 4 | . . . . 1 . . 1 1 . 1 . . Special Weapon . | . . . . . . . . . . . . . Impact Weapon . | . . . . . . . . . . . . . Slashing Weapon 6 | . . . . . . . 1 2 . 2 1 . Piercing Weapon . | . . . . . . . . . . . . . Special Melee Weapon . | . . . . . . . . . . . . . Unidentified Prototypes 7 | . . . . . . . . 1 1 . 4 1 Parts Lost 1 | . . . . . . . . 1 . . . . Power . | . . . . . . . . . . . . . Propulsion . | . . . . . . . . . . . . . Utility 1 | . . . . . . . . 1 . . . . Weapon . | . . . . . . . . . . . . . Highest Loss Streak 1 | . . . . . . . . 1 . . . . Average Slot Usage (%) 81 | . 96 100 95 100 61 63 78 77 79 77 81 84 Engine 5 | . 12 12 12 12 8 7 2 . . . . . Core 3 | . . . . . . . 3 11 9 4 . . Reactor 1 | . . . . . . . . . . 4 8 11 Treads 6 | . 17 25 25 25 . . . . . . . . Flight 13 | . . . . . 8 7 17 21 20 21 28 30 Device 3 | . . . . . . . 3 5 10 3 4 5 Storage 27 | . 33 37 33 37 28 28 30 27 25 22 20 13 Hackware 4 | . . . . . . 2 6 3 10 12 14 15 Protection 1 | . . . . . . 4 2 . . 2 . . Ballistic Gun 7 | . 25 25 25 12 8 . . . . . . . Ballistic Cannon 3 | . . . . . 7 14 9 1 . . . . Slashing Weapon 1 | . . . . . . . . 3 5 3 2 3 Naked Turns . | . . . . . . . . . . . . . Heaviest Build 133 | 19 27 27 55 57 71 57 68 94 95 112 113 133 Greatest Support 145 | 20 40 40 40 40 72 72 87 100 96 112 131 145 Greatest Overweight (x) 1 | . . . 1 1 . . . . . . . . Average Overweight (x) . | . . . . 1 . . . . . . . . Largest Inventory Capacity 30 | 10 14 14 20 20 28 20 24 28 30 30 30 30 Average Capacity 22 | 8 12 14 16 20 20 20 23 27 29 30 30 24 Most Carried 30 | 8 8 9 16 15 20 20 24 28 29 30 30 27 Average Carried 20 | 7 8 8 12 15 17 19 23 27 27 28 28 21 Final Capacity 30 | 10 14 14 20 20 20 20 24 28 30 30 30 22 Final Carried 29 | 8 8 9 15 15 20 20 24 28 29 28 28 18 Class Distribution -------------------- 56% | Hacker-Mutant 22% | Hacker-Sprinter 13% | Wizard-Sprinter 6% | Hauler-Sprinter Dominant Class ---------------- Hacker-Mutant | -10/Materials Hacker-Mutant | -10/Mines Hacker-Mutant | -10/Exiles Hacker-Mutant | -9/Mines Hacker-Mutant | -8/Materials Hacker-Mutant | -7/Factory Hacker-Mutant | -6/Factory Hacker-Sprinter | -5/Factory Hacker-Sprinter | -4/Factory Hacker-Sprinter | -3/Research Wizard-Sprinter | -2/Research Wizard-Sprinter | -1/Access Resources | -11 -10 -10 -10 -9 -8 -7 -6 -5 -4 -3 -2 -1 ----------- Run | Scr Mat Min Exi Min Mat Fac Fac Fac Fac Res Res Acc Matter Collected 1329 | 222 30 . . 83 64 156 298 . 93 114 163 106 Remotely . | . . . . . . . . . . . . . Salvage Created 640 | 87 30 . . 28 188 91 216 . . . . . Parts 29 | 2 5 . . 4 7 4 7 . . . . . Haulers Intercepted 3 | . . . . . 1 . 2 . . . . . Recyclers Shooed . | . . . . . . . . . . . . . Parts Field Recycled . | . . . . . . . . . . . . . Retrieved Matter . | . . . . . . . . . . . . . Parts Self-Destructed . | . . . . . . . . . . . . . Prevented . | . . . . . . . . . . . . . Kills | -11 -10 -10 -10 -9 -8 -7 -6 -5 -4 -3 -2 -1 ------- Run | Scr Mat Min Exi Min Mat Fac Fac Fac Fac Res Res Acc Combat Hostiles Destroyed 8 | . . . . 2 3 1 2 . . . . . Guns 1 | . . . . . 1 . . . . . . . Cannons 3 | . . . . . 2 1 . . . . . . AOE 4 | . . . . 2 . . 2 . . . . . Classes Destroyed 7 | 1 1 . . 2 2 1 . . . . . . Worker 1 | . . . . 1 . . . . . . . . Hauler 3 | . . . . . 1 . 2 . . . . . Recycler 2 | 1 . . . . . 1 . . . . . . Watcher 1 | . 1 . . . . . . . . . . . Swarmer 4 | . . . . 2 . . 2 . . . . . Grunt 1 | . . . . . . 1 . . . . . . Sentry 3 | . . . . . 3 . . . . . . . Best Kill Streak 3 | 1 1 . . 3 1 2 3 . . . . . Combat Bots Only 2 | . . . . 2 1 1 2 . . . . . Max Kills in Single Turn 2 | 1 1 . . 2 1 1 1 . . . . . Gunslinging . | . . . . . . . . . . . . . Exploded 2 | . . . . 2 . . 1 . . . . . Melee . | . . . . . . . . . . . . . Uniques/NPCs Destroyed . | . . . . . . . . . . . . . Combat | -11 -10 -10 -10 -9 -8 -7 -6 -5 -4 -3 -2 -1 -------- Run | Scr Mat Min Exi Min Mat Fac Fac Fac Fac Res Res Acc Damage Taken 1263 | . . . . 20 34 41 69 385 . 401 118 195 Core 193 | . . . . 10 . . 33 74 . 16 14 46 Absorbed by Shields . | . . . . . . . . . . . . . Core Remaining (%) 97 | 100 . . . 96 100 100 96 92 100 98 99 97 Volleys Fired 38 | 2 2 . . 3 11 8 9 1 . 2 . . Largest 2 | 2 2 . . 1 2 2 2 1 . 1 . . Hottest 96 | 40 40 . . 33 96 96 96 43 . 52 . . Shots Fired 65 | 4 4 . . 3 22 16 13 1 . 2 . . Gun 22 | 4 4 . . . 14 . . . . . . . Cannon 32 | . . . . . 8 16 8 . . . . . Launcher 11 | . . . . 3 . . 5 1 . 2 . . Special . | . . . . . . . . . . . . . Kinetic 54 | 4 4 . . . 22 16 8 . . . . . Thermal . | . . . . . . . . . . . . . Explosive 5 | . . . . 3 . . . . . 2 . . Electromagnetic 6 | . . . . . . . 5 1 . . . . Robot Hit Streak 27 | 3 7 . . 10 27 6 6 . . . . . Robot Miss Streak 3 | 1 . . . . 1 2 3 . . . . . Penetration Max . | . . . . . . . . . . . . . Secondary Targets . | . . . . . . . . . . . . . Shots Hit Robots 50 | 3 4 . . 3 20 11 9 . . . . . Core Hits 23 | 1 2 . . 4 6 3 7 . . . . . Critical Hits 1 | . . . . . 1 . . . . . . . Critical Kills . | . . . . . . . . . . . . . Critical Parts Destroyed . | . . . . . . . . . . . . . Melee Attacks 25 | . . . . . . . . 8 4 3 3 7 Impact . | . . . . . . . . . . . . . Slashing 25 | . . . . . . . . 8 4 3 3 7 Piercing . | . . . . . . . . . . . . . Sneak Attacks . | . . . . . . . . . . . . . Combat Hostiles . | . . . . . . . . . . . . . Follow-up Attacks . | . . . . . . . . . . . . . Damage Inflicted 1217 | 29 54 . . 232 355 196 295 . . 56 . . Guns 251 | 29 54 . . . 168 . . . . . . . Cannons 564 | . . . . . 187 196 181 . . . . . Explosions 402 | . . . . 232 . . 114 . . 56 . . Melee . | . . . . . . . . . . . . . Ramming . | . . . . . . . . . . . . . Kinetic 815 | 29 54 . . . 355 196 181 . . . . . Thermal . | . . . . . . . . . . . . . Explosive 288 | . . . . 232 . . . . . 56 . . Electromagnetic 114 | . . . . . . . 114 . . . . . Impact . | . . . . . . . . . . . . . Slashing . | . . . . . . . . . . . . . Piercing . | . . . . . . . . . . . . . Highest Corruption 5 | . . . . . . . 1 4 5 2 . 1 Average Corruption 2 | . . . . . . . 1 3 3 1 . 1 Corruption Purged 4 | . . . . . . . . 2 2 . . . Effects 8 | . . . . . . . 1 5 1 . . 1 Message Errors 4 | . . . . . . . . 3 . . . 1 Matter Fused 3 | . . . . . . . . 2 1 . . . Data Loss (minor) 1 | . . . . . . . 1 . . . . . Overload Shots . | . . . . . . . . . . . . . Overflow Damage 52 | . . . . 13 . 13 . . . 26 . . Projectiles 13 | . . . . . . 13 . . . . . . Explosions 39 | . . . . 13 . . . . . 26 . . Melee . | . . . . . . . . . . . . . Knockbacks 4 | . . . . . 1 3 . . . . . . Impact . | . . . . . . . . . . . . . Kinetic 4 | . . . . . 1 3 . . . . . . Secondary . | . . . . . . . . . . . . . Self-Inflicted Damage 40 | . . . . . . . 25 15 . . . . Shots 4 | . . . . . . . 3 1 . . . . Rammed . | . . . . . . . . . . . . . Targets Rammed . | . . . . . . . . . . . . . Kicked . | . . . . . . . . . . . . . Crushed . | . . . . . . . . . . . . . Highest Temperature 393 | . . . . . 102 281 393 7 . 56 244 266 Average Temperature 93 | . . . . . 40 152 122 3 . 9 76 123 Received Heat Transfer 135 | . . . . . 27 36 . 45 . 9 . 18 Effects 5 | . . . . . . . 4 . . . . 1 Shutdowns 1 | . . . . . . . 1 . . . . . Energy Bleed 4 | . . . . . . . 3 . . . . 1 Siege Activations . | . . . . . . . . . . . . . Robots Corrupted . | . . . . . . . . . . . . . Combat Hostiles . | . . . . . . . . . . . . . Parts Fried . | . . . . . . . . . . . . . Impact Corruptions . | . . . . . . . . . . . . . Robots Melted . | . . . . . . . . . . . . . Combat Hostiles . | . . . . . . . . . . . . . Parts Melted . | . . . . . . . . . . . . . Heat Transferred . | . . . . . . . . . . . . . Parts Sabotaged . | . . . . . . . . . . . . . Parts Stolen . | . . . . . . . . . . . . . Parts Stripped . | . . . . . . . . . . . . . Power Chain Reactions . | . . . . . . . . . . . . . Missiles Intercepted . | . . . . . . . . . . . . . Alert | -11 -10 -10 -10 -9 -8 -7 -6 -5 -4 -3 -2 -1 ------- Run | Scr Mat Min Exi Min Mat Fac Fac Fac Fac Res Res Acc Peak Influence 648 | 5 9 2 . 55 121 542 292 648 166 182 210 240 Initial 195 | . 2 2 . . 17 39 195 105 130 64 76 95 Average 170 | 4 5 2 . 40 62 310 231 273 150 101 129 152 Maximum Alert Level 2 | . . . . . . 2 1 2 . . 1 1 Low Security (%) 71 | 100 100 100 . 100 100 42 21 56 100 100 92 76 Level 1 18 | . . . . . . . 78 21 . . 7 23 Level 2 10 | . . . . . . 57 . 22 . . . . Level 3 . | . . . . . . . . . . . . . Level 4 . | . . . . . . . . . . . . . Level 5 . | . . . . . . . . . . . . . High Security . | . . . . . . . . . . . . . Max Security . | . . . . . . . . . . . . . Squads Dispatched 8 | . . . . . 1 1 1 3 . . 1 1 Investigation 3 | . . . . . . 1 . 1 . . . 1 Extermination 2 | . . . . . . . 1 1 . . . . Reinforcement 3 | . . . . . 1 . . 1 . . 1 . Assault . | . . . . . . . . . . . . . Garrison . | . . . . . . . . . . . . . Intercept . | . . . . . . . . . . . . . Construction Impeded . | . . . . . . . . . . . . . Haulers Reinforced . | . . . . . . . . . . . . . Stealth | -11 -10 -10 -10 -9 -8 -7 -6 -5 -4 -3 -2 -1 --------- Run | Scr Mat Min Exi Min Mat Fac Fac Fac Fac Res Res Acc Distress Signals 1 | . . . . . 1 . . . . . . . Communications Jammed . | . . . . . . . . . . . . . Distress Signals . | . . . . . . . . . . . . . Times Spotted 112 | . 1 1 . 3 8 3 7 37 . 10 20 22 Peak Tracking Total 14 | . 1 1 . 3 5 2 3 11 . 7 6 14 Tactical Retreats 27 | . . . . 1 . 1 3 12 . 2 5 3 Traps | -11 -10 -10 -10 -9 -8 -7 -6 -5 -4 -3 -2 -1 ------- Run | Scr Mat Min Exi Min Mat Fac Fac Fac Fac Res Res Acc Traps Triggered 4 | . . . . . . . 1 2 . 1 . . Indirectly . | . . . . . . . . . . . . . Trap Hack Attempts . | . . . . . . . . . . . . . Triggered . | . . . . . . . . . . . . . Disarmed . | . . . . . . . . . . . . . Reprogrammed . | . . . . . . . . . . . . . Reused . | . . . . . . . . . . . . . Traps Extracted . | . . . . . . . . . . . . . Installed . | . . . . . . . . . . . . . Triggered . | . . . . . . . . . . . . . Machines | -11 -10 -10 -10 -9 -8 -7 -6 -5 -4 -3 -2 -1 ---------- Run | Scr Mat Min Exi Min Mat Fac Fac Fac Fac Res Res Acc Machines Disabled 3 | . . . . . . . 1 . . 1 . 1 Max in Single Turn 1 | . . . . . . . 1 . . 1 . 1 Garrison Access 1 | . . . . . . . . . 1 . . . Machines Sabotaged . | . . . . . . . . . . . . . Garrisons Compromised . | . . . . . . . . . . . . . Overloaded Fab Kills . | . . . . . . . . . . . . . Fab Network Shutdowns 2 | . . . . . . 1 . 1 . . . . Hacking | -11 -10 -10 -10 -9 -8 -7 -6 -5 -4 -3 -2 -1 --------- Run | Scr Mat Min Exi Min Mat Fac Fac Fac Fac Res Res Acc Machines Accessed 30 | . . . 1 1 2 5 2 6 5 1 2 5 Terminals 24 | . . . . 1 2 4 2 4 3 1 2 5 Fabricators 3 | . . . . . . 1 . 2 . . . . Repair Stations 1 | . . . . . . . . . 1 . . . Recycling Units . | . . . . . . . . . . . . . Scanalyzers . | . . . . . . . . . . . . . Garrison Access 1 | . . . . . . . . . 1 . . . Total Hacks 77 | . . . 1 2 3 15 3 14 17 3 9 10 Successful 39 | . . . 1 2 2 11 . 7 6 2 2 6 Failed 38 | . . . . . 1 4 3 7 11 1 7 4 Catastrophic 2 | . . . . . . . . . 2 . . . Database Lockouts . | . . . . . . . . . . . . . Manual 41 | . . . 1 2 . 8 1 2 13 2 8 4 Terminals 65 | . . . . 2 3 12 3 10 13 3 9 10 Fabricators 7 | . . . . . . 3 . 4 . . . . Repair Stations 3 | . . . . . . . . . 3 . . . Recycling Units . | . . . . . . . . . . . . . Scanalyzers . | . . . . . . . . . . . . . Garrison Access 1 | . . . . . . . . . 1 . . . Terminal Hacks 26 | . . . 1 2 2 6 . 5 2 2 2 4 Part Schematic 2 | . . . . . . 1 . . 1 . . . Robot Analysis 4 | . . . . . 1 . . 2 . . . 1 Prototype ID Bank 5 | . . . . 2 . 1 . 2 . . . . Open Door 1 | . . . . . . . . . . . . 1 Level Access Points 4 | . . . . . . 1 . 1 . . 1 1 Branch Access Points 1 | . . . . . . 1 . . . . . . Terminal Index 3 | . . . . . . 1 . . 1 . . 1 Alert Level 1 | . . . . . . . . . . . 1 . Unreport Threat 1 | . . . . . 1 . . . . . . . Locate Traps 2 | . . . . . . 1 . . . 1 . . Zone Layout 1 | . . . . . . . . . . 1 . . EX-Prototype ID Bank 1 | . . . 1 . . . . . . . . . Fabricator Hacks 4 | . . . . . . 2 . 2 . . . . Load Schematic 2 | . . . . . . 1 . 1 . . . . Build 2 | . . . . . . 1 . 1 . . . . Repair Station Hacks 2 | . . . . . . . . . 2 . . . Scan Component 1 | . . . . . . . . . 1 . . . Repair 1 | . . . . . . . . . 1 . . . Recycling Unit Hacks . | . . . . . . . . . . . . . Scanalyzer . | . . . . . . . . . . . . . Garrison Access Hacks 1 | . . . . . . . . . 1 . . . Seal Access 1 | . . . . . . . . . 1 . . . Unauthorized Hacks 6 | . . . . . . 3 . . 1 . . 2 Terminals 6 | . . . . . . 3 . . 1 . . 2 Assimilate 2 | . . . . . . 2 . . . . . . Botnet 1 | . . . . . . . . . . . . 1 Operators 3 | . . . . . . 1 . . 1 . . 1 Fabricators . | . . . . . . . . . . . . . Repair Stations . | . . . . . . . . . . . . . Recycling Units . | . . . . . . . . . . . . . Scanalyzers . | . . . . . . . . . . . . . Garrison Access . | . . . . . . . . . . . . . Data Cores Recovered . | . . . . . . . . . . . . . Used . | . . . . . . . . . . . . . Hacking Detections 27 | . . . . 1 2 5 2 6 4 . 2 5 Full Trace Events 3 | . . . . . . 1 . 1 . . . 1 Feedback Events 2 | . . . . . . . . 1 . . . 1 Corruption 1 | . . . . . . . . . . . . 1 Hackware Fried 1 | . . . . . . . . 1 . . . . Feedback Blocked . | . . . . . . . . . . . . . Robot Schematics Acquired . | . . . . . . . . . . . . . Robots Built . | . . . . . . . . . . . . . Matter . | . . . . . . . . . . . . . Time . | . . . . . . . . . . . . . Total Robot Build Rating . | . . . . . . . . . . . . . Part Schematics Acquired 2 | . . . . . . 1 . . 1 . . . Parts Built 2 | . . . . . . 1 . 1 . . . . Matter 292 | . . . . . . 146 . 146 . . . . Time 109 | . . . . . . 73 . 36 . . . . Total Part Build Rating 6 | . . . . . . 3 . 3 . . . . Parts Repaired 1 | . . . . . . . . . 1 . . . Time 31 | . . . . . . . . . 31 . . . Parts Recycled . | . . . . . . . . . . . . . Recycled Matter . | . . . . . . . . . . . . . Retrieved Matter . | . . . . . . . . . . . . . Retrieved Components . | . . . . . . . . . . . . . Parts Scanalyzed . | . . . . . . . . . . . . . Part Schematics Acquired . | . . . . . . . . . . . . . Parts Damaged . | . . . . . . . . . . . . . Bothacking | -11 -10 -10 -10 -9 -8 -7 -6 -5 -4 -3 -2 -1 ------------ Run | Scr Mat Min Exi Min Mat Fac Fac Fac Fac Res Res Acc Used RIF Installer . | . . . . . . . . . . . . . Robots Hacked . | . . . . . . . . . . . . . Non-combat . | . . . . . . . . . . . . . Combat . | . . . . . . . . . . . . . Robot Hacks Applied . | . . . . . . . . . . . . . Relay Couplers Released . | . . . . . . . . . . . . . Robots Rewired . | . . . . . . . . . . . . . Allies Hacked . | . . . . . . . . . . . . . Hacks Repelled . | . . . . . . . . . . . . . Allies | -11 -10 -10 -10 -9 -8 -7 -6 -5 -4 -3 -2 -1 -------- Run | Scr Mat Min Exi Min Mat Fac Fac Fac Fac Res Res Acc Total Allies 1 | . . . . . . 1 . . . . . . Largest Group 1 | . . . . . . 1 1 . . . . . Highest-Rated Group 26 | . . . . . . 26 26 . . . . . Highest-Rated Ally 26 | . . . . . . 26 26 . . . . . Total Orders . | . . . . . . . . . . . . . Ally Attacks . | . . . . . . . . . . . . . Total Damage . | . . . . . . . . . . . . . Kills . | . . . . . . . . . . . . . Allies Corrupted . | . . . . . . . . . . . . . Allies Melted . | . . . . . . . . . . . . . Intel | -11 -10 -10 -10 -9 -8 -7 -6 -5 -4 -3 -2 -1 ------- Run | Scr Mat Min Exi Min Mat Fac Fac Fac Fac Res Res Acc Robot Analysis Total 4 | . . . . . 1 . . 2 . . . 1 Derelict Logs Recovered . | . . . . . . . . . . . . . Drone Launches . | . . . . . . . . . . . . . Drone Recoveries . | . . . . . . . . . . . . . Exploration | -11 -10 -10 -10 -9 -8 -7 -6 -5 -4 -3 -2 -1 ------------- Run | Scr Mat Min Exi Min Mat Fac Fac Fac Fac Res Res Acc Turns Passed 2791 | 24 108 129 511 58 181 240 350 433 189 217 195 156 Spaces Moved 4720 | 14 68 72 290 29 207 330 768 990 376 537 512 527 Core . | . . . . . . . . . . . . . Treads 433 | . 42 72 290 29 . . . . . . . . Legs 40 | 14 26 . . . . . . . . . . . Wheels . | . . . . . . . . . . . . . Hover . | . . . . . . . . . . . . . Flight 4247 | . . . . . 207 330 768 990 376 537 512 527 Fastest Speed 14 | 120 120 160 160 180 50 50 37 33 33 30 19 14 Average Speed 45 | 120 144 160 172 180 50 50 37 33 33 30 20 16 Slowest Speed 180 | 120 160 160 180 180 50 50 50 37 33 33 28 17 Overloaded Moves . | . . . . . . . . . . . . . Propulsion Burnouts . | . . . . . . . . . . . . . Robots Hopped 12 | . . . . . . . 4 1 1 4 1 1 Cave-ins Triggered . | . . . . . . . . . . . . . Exploration Rate (%) 23 | 2 18 32 64 23 32 9 14 40 9 22 21 19 Regions Visited 12 Branch Regions 3 Pre-discovered Areas . | . . . . . . . . . . . . . Known Exits Taken 12 | 1 1 1 1 1 1 1 1 1 1 1 1 . Unknown Exits Taken . | . . . . . . . . . . . . . Scrap Searched . | . . . . . . . . . . . . . Spaces Dug 24 | . . . . . . . . 8 4 3 3 6 Terrain Destroyed 59 | . . . . 10 1 5 1 8 4 21 3 6 Melee 24 | . . . . . . . . 8 4 3 3 6 Projectile 7 | . . . . . 1 5 1 . . . . . AOE 28 | . . . . 10 . . . . . 18 . . Terrain Rammed . | . . . . . . . . . . . . . Walls Destroyed . | . . . . . . . . . . . . . Machines Disabled . | . . . . . . . . . . . . . Actions | -11 -10 -10 -10 -9 -8 -7 -6 -5 -4 -3 -2 -1 --------- Run | Scr Mat Min Exi Min Mat Fac Fac Fac Fac Res Res Acc Total 5261 | 17 72 86 301 32 264 388 814 1084 434 584 603 582 Wait 201 | . . 14 . . 20 45 3 22 34 2 33 28 Move 4685 | 13 67 71 289 28 206 329 759 987 373 530 509 524 Hop 10 | . . . . . . . 4 1 1 2 1 1 Pick Up 94 | . . 1 4 . 11 2 15 15 9 16 19 2 Fast Attach 30 | 1 1 . 2 . 2 2 5 4 . 3 8 2 Attach 36 | . . . . . 3 . 5 8 3 9 3 5 Detach 13 | 1 . . 1 . 2 . . 6 . 3 . . Swap 22 | . 2 . 1 1 2 . 2 7 2 2 1 2 Drop 96 | . . . 4 . 7 2 12 14 8 12 26 11 Fire 38 | 2 2 . . 3 11 8 9 1 . 2 . . Melee 25 | . . . . . . . . 8 4 3 3 7 Ram . | . . . . . . . . . . . . . Kick . | . . . . . . . . . . . . . Crush . | . . . . . . . . . . . . . Escape Stasis 11 | . . . . . . . . 11 . . . . Rewire . | . . . . . . . . . . . . . Trap . | . . . . . . . . . . . . . Miscellaneous . | . . . . . . . . . . . . . Route ------- -11/Scrapyard -10/Materials -10/Mines -10/Exiles -9/Mines -8/Materials -7/Factory (discovered 6 exits: *Fac x4 / Low x2) -6/Factory -5/Factory (discovered 4 exits: *Fac x4) -4/Factory -3/Research -2/Research (discovered 3 exits: *Acc x3) -1/Access To Epsilon Eridani History --------- Turn | Location | Event 7 | -11/Scrapyard | Identified exit to Materials 7 | -11/Scrapyard | Discovered exit to Materials (range 3) 25 | -11/Scrapyard | Entered Materials 25 | -10/Materials | Evolved 1 slot: Utility x1 74 | -10/Materials | Identified exit to Mines 74 | -10/Materials | Discovered exit to Mines (range 11) 96 | -10/Materials | Met 8R-AWN 133 | -10/Materials | Entered Mines 135 | -10/Mines | Followed 8R-AWN into the Mines 215 | -10/Mines | Received a Rocket Launcher from a helpful Derelict 256 | -10/Mines | Identified exit to Exiles 256 | -10/Mines | Discovered exit to Exiles (range 5) 262 | -10/Mines | Entered Exiles 301 | -10/Exiles | Welcomed by 8R-AWN 309 | -10/Exiles | Build established: Hacker-Mutant 330 | -10/Exiles | Met EX-HEX 376 | -10/Exiles | Met EX-BIN 545 | -10/Exiles | Opened EX-Vault 554 | -10/Exiles | Found Skeleton Box 560 | -10/Exiles | Found Flying Fortress v7 597 | -10/Exiles | Warned to stay clear of 0b10 Research branches 611 | -10/Exiles | Aligned with FarCom system 613 | -10/Exiles | Given EX-Vault access code 662 | -10/Exiles | Met EX-DEC 757 | -10/Exiles | Identified exit to Mines 757 | -10/Exiles | Discovered exit to Mines (range 11) 773 | -10/Exiles | Left Exiles lab with Flying Fortress v7 773 | -10/Exiles | Entered Mines 806 | -9/Mines | Identified exit to Materials 806 | -9/Mines | Discovered exit to Materials (range 12) 831 | -9/Mines | Entered Materials 831 | -8/Materials | Evolved 4 slots: Propulsion x2, Utility x2 1011 | -8/Materials | Identified exit to Factory 1011 | -8/Materials | Discovered exit to Factory (range 4) 1012 | -8/Materials | Entered Factory 1012 | -7/Factory | Evolved 2 slots: Propulsion x1, Utility x1 1114 | -7/Factory | Local fabrication network quarantined 1145 | -7/Factory | Fabricated Hacking Suite? 1232 | -7/Factory | Identified exit to Factory 1232 | -7/Factory | Identified exit to Lower Caves 1252 | -7/Factory | Entered another Factory area 1252 | -6/Factory | Accompanied by 1 ally 1252 | -6/Factory | Evolved 2 slots: Propulsion x1, Utility x1 1582 | -6/Factory | Identified exit to Factory 1582 | -6/Factory | Discovered exit to Factory (range 16) 1602 | -6/Factory | Entered another Factory area 1602 | -5/Factory | Evolved 2 slots: Power x1, Propulsion x1 1800 | -5/Factory | Hacking Suite fried by hacking feedback 1836 | -5/Factory | Fabricated Hacking Suite? 1906 | -5/Factory | Local fabrication network quarantined 1973 | -5/Factory | Identified exit to Factory 2035 | -5/Factory | Entered another Factory area 2035 | -4/Factory | Evolved 2 slots: Utility x2 2184 | -4/Factory | Repaired Reaction Control System 2221 | -4/Factory | Identified exit to Research 2221 | -4/Factory | Discovered exit to Research (range 10) 2224 | -4/Factory | Entered Research 2224 | -3/Research | Evolved 2 slots: Propulsion x1, Utility x1 2254 | -3/Research | Spotted B-86 Titan 2329 | -3/Research | Build established: Hacker-Sprinter 2390 | -3/Research | Found Fusion Bomb Launcher 2436 | -3/Research | Identified exit to Research 2436 | -3/Research | Discovered exit to Research (range 16) 2441 | -3/Research | Entered another Research area 2441 | -2/Research | Evolved 2 slots: Propulsion x2 2490 | -2/Research | Identified exit to Access 2492 | -2/Research | Found Prototype Device 2492 | -2/Research | Identified Exp. Thermal Shield 2636 | -2/Research | Entered Access 2636 | -1/Access | Evolved 2 slots: Power x1, Propulsion x1 2741 | -1/Access | Identified exit to Surface 2792 | *** | Escaped! Last Messages --------------- 02758_ Connecting with Terminal... >>Analysis(G-73 Enforcer) Downloading analysis... G-73 Enforcer Tier: 9 The latest G-series implementation, armed with a powerful phase gun supported by a secondary heavy laser. While not exceptionally effective in single combat, the G-73 is much more formidable in groups, as they normally operate. 02759_ Acquired Adv. Coolant Injector. 02760_ Dropped Matter Compressor. 02760_ Discarded Imp. Terrain Scan Processor. 02761_ Dropped Imp. System Backup Module. 02778_ Dropped Antimatter Reactor. 02778_ Acquired Lgt. Quantum Reactor. 02791_ Connecting with Terminal... >>Open Sealed Barrier opened. 02791_ The Access Shell folds into the floor. [Achievement: Epsilon Run] Map ----- +----------------------------------------------------+ | ?????????????????????????????????????????????????? | | ?????????????????????????????????????????????????? | | ?????????????????????????????????????????????????? | | ?????????????????????????????????????????????????? | | ?????????????????????????????????????????????????? | | ?????????????????????????????????????????????????? | | ?????????????????????????????????????????????????? | | ?????????????????????????????????????????????????? | | ?????????????????????????????????????????????????? | | ?????????????????????????????????????????????????? | | ?????????????????????????????????????????????????? | | ?????????????????????????????????????????????????? | | ?????????????????????????????????????????????????? | | ?????????????????????????????????????? ?????????? | | ?????????????????????????????????????? #????????? | | ?????????????????????????????????????? +????????? | | ?????????????????????????????????????? #????????? | | ?????????????????????????????????????? #????????? | | ?????????????????????????????????????? #????????? | | ?????????????????????????????###?????? #????????? | | ????????????????????########## #######s #????????? | | ????????????????????" #????????? | | ??????????????BB????" s#????????? | | ??????????????BB????" s #????????? | | ????????????????????" s #????????? | | ????????????????????" "@ #????????? | | ????????????????????" "" #????????? | | ????????????????????" #????????? | | ??????????????BB????" #????????? | | ??????????????BB????" """ """ #Y???????? | | ????????????????????" """T""" #????????? | | ????????????????????########## ####### #????????? | | ?????????????????????????????###?????# #????????? | | ?????????#####??????????############## #????????? | | ?????##### ############ # #????????? | | ?????# + # #???? ? | | ?????# ### ############ gb #???? | | ?????# #?#######????????# # ##### | | ?????# #? #????????# + | | ?????# #? ########?# # g | | ?????# #?"" #] #?# ## | | ?????# ##"" # #?# ## | | ?????# ##"Y # #?# ## | | ?????# ##"" # #?# ## | | ?????# ##"" # #?# ## | | ?????# ## #? =??# ## | | ?????# #?? ??##+##??############### | | ?????# #####+##### ################## ####? | | ?????# #???? | | ?????# ########### *# ################+## #???? | +----------------------------------------------------+ Best States ------------- Heat Dissipation 83 Coolant Potential 100 Energy Generation 65 Energy Capacity 690 Matter Stores 300 Matter Capacity 300 Sight Range 16 Terrain Scan Density 110 Resistance: KI 35 Resistance: TH 35 Resistance: EX 35 Resistance: EM 35 Resistance: I 35 Resistance: S 35 Resistance: P 35 Propulsion Shielding 66 Weapon Shielding 33 Evasion (%) 77 Recoil Reduction 2 Offensive Hacking 58 Defensive Hacking 14 Item Schematics ----------------- Hacking Suite | -7/Factory | Hacked Adv. Hacking Suite | -4/Factory | Hacked Robot Schematics ------------------ None Fabricated ------------ Hacking Suite | x1 | -7/Factory Hacking Suite | x1 | -5/Factory Alien Tech Used ----------------- None Achievements -------------- Can't Catch Me Dodgeball, But With Guns Epsilon Run Part-time Excavator Challenges ------------ None Game ------ Seed FusionDirtyWell Manual? 1 Play Time 01:02:51 Cumulative 564.8 hours Start 2020.10.25 @ 18:19:56 End 2020.10.27 @ 00:37:29 Sessions 3 Manual Loads 0 Difficulty Explorer Special Mode None Game No. 125 Rogue 79 Adventurer 0 Explorer 46 Win Type 0 Total 32 Types 3/1/5/17/0/3/1/1/1 Lore% 70 Gallery% 85 Achievement% 56 Wizard Run 0 Options --------- ASCII 0 Keyboard 0 Movement Mouse Keybinds 0 Fullscreen 2 Font 24/Smallcaps Map View 76x50 Tactical HUD 1 Map Filters NONE Filters NONE Steam 1 RUN: a9c2ce0c-5c11-4396-aaf3-de4a024c8756